{"text_format":"1","workbook":"xlsx","n_sheets":21,"sheets":["Cover Page","Contents","Facility Info","Operational Data","Operational Summary","Perf. Form 1","Energy Form 1","Permit Compliance","Improvements","Public Liasion","Residue Quality ","Water","Air (periodic)","Air (CEMS)","HCl","SO2","NOx","TOC","Particulates","CO 95% 10 min","NH3"],"not_rendered":{"charts":7,"images":2,"macros":1,"external_links":0,"defined_names":21,"comments":4,"pivot_tables":0},"unopened":[],"bounds":{"document_bytes":16777216,"sheet_cells":100000,"rows_first":2000,"rows_last":500,"rows_between":2000,"halvings":0,"cell_chars":16384,"cell_head_chars":4096},"cells_cut":0,"cells_raw":0,"read":"whole","date_system":"1900"}

{"sheet":"Cover Page","index":0,"n_rows":53,"n_cols":14,"rows_kept":53,"cut":false,"hidden":false,"merged":[[13,13,18,15],[34,1,34,8],[0,3,5,6],[7,1,23,8],[28,1,28,8],[30,1,30,8],[32,1,32,8],[48,2,48,3],[48,6,48,8],[52,2,52,3],[36,1,36,8],[40,2,40,8],[42,2,42,4],[44,2,44,4],[46,2,46,3],[46,6,46,8]]}
[null,null,null,"Add company logo"]
[null,null,null,null,null,null,null,null,null,null,null,null,null,"Version 2.1 11/11/19"]
[]
[]
[]
[]
[]
[null,"Add photo"]
[]
[]
[]
[]
[null,null,null,null,null,null,null,null,null,null,null,null,null,"Notes:"]
[null,null,null,null,null,null,null,null,null,null,null,null,null,"This template may require adjustments by individual operators to meet specific reporting requirements as defined in the site Permit(s)"]
[]
[]
[]
[]
[]
[]
[]
[]
[]
[]
[]
[]
[]
[]
[null,"Annual Performance Report 2021"]
[]
[null,"Permit EPR/BJ6178IX"]
[]
[null,"SUEZ R&R Kirklees EfW"]
[]
[null,"other name of facility (if applicable)"]
[]
[null,"Kirklees EfW"]
[]
[null,"Year:",2021]
[]
[null,"Address:","Diamond Street, Huddersfield, West Yorkshire HD1 6BZ"]
[]
[null,"Tel: ","01484 448701"]
[]
[null,"Email: ","mark.ryan@suez.com"]
[]
[null,"Prepared by:","Steve Taylor",null,null,"Position:","EIR Advisor"]
[]
[null,"Approved by:","Mark Ryan",null,null,"Position:","Plant Manager"]
[]
[null,"Version:",1]
[]
[null,"Issue Date:","2022-01-01"]

{"sheet":"Contents","index":1,"n_rows":44,"n_cols":11,"rows_kept":44,"cut":false,"hidden":false,"merged":[[4,10,7,14],[8,1,8,6],[3,1,3,6],[4,1,4,6],[5,1,5,6],[6,1,6,6],[7,1,7,6],[20,1,20,6],[9,1,9,6],[10,1,10,6],[11,1,11,6],[12,1,12,6],[13,1,13,6],[14,1,14,6],[15,1,15,6],[16,1,16,6],[17,1,17,6],[18,1,18,6],[19,1,19,6],[35,1,35,6],[21,1,21,6],[22,1,22,6],[23,1,23,6],[26,1,26,6],[27,1,27,6],[28,1,28,6],[29,1,29,6],[30,1,30,6],[31,1,31,6],[34,1,34,6],[43,0,46,9],[36,1,36,6],[37,1,37,6],[38,1,38,6],[39,1,39,6],[40,1,40,6],[41,1,41,6]]}
[{"$f":"+'Cover Page'!$B$29","v":"Annual Performance Report 2021"},null,null,null,{"$f":"+'Cover Page'!$B$33","v":"SUEZ R&R Kirklees EfW"}]
[]
["Contents",null,null,null,null,null,null,null,null,null,"Notes:"]
["Section","Subject",null,null,null,null,null,"Page ",null,null,"Section references and Page nos. to be inserted"]
[null,"Facility Information",null,null,null,null,null,null,null,null,"Sections and Subjects may require adjustment by individual operators to meet specific reporting requirements as defined in the sites Permit(s)"]
[null,"Operational Summary"]
[null,"Operational Data"]
[null,"Performance Form 1"]
[null,"Energy Form 1"]
[null,"Permit Compliance"]
[null,"Improvements"]
[null,"Public Liasion"]
[null,"Residue Quality - Optional"]
[null,"Emissions to Water"]
[null,"Emissions to Air (periodically monitored)"]
[null,"Emissions to Air (continuously monitored)"]
[null,"Hydrogen Chloride emissions"]
[null,"Sulphur Dioxdie emsissions"]
[null,"Oxides of Notrigen emissions"]
[null,"Total Organic Carbon emissions"]
[null,"Particulate Matter emissions"]
[null,"Carbon Monoxide emissions"]
[null,"Ammonia emissions"]
[]
[]
["Version Control"]
["Section","Information",null,null,null,null,null,"Date"]
[]
[]
[]
[]
[]
[]
["Distribution"]
["Copy","Name, Role",null,null,null,null,null,"No."]
[]
[]
[]
[]
[]
[]
[]
[]
["This report is required under the Industrial Emissions Directive’s Article 55(2) requirements on reporting and public information on waste incineration plants and co-incineration plants, which require the operator to produce an annual report on the functioning and monitoring of the plant and make it available to the public. "]

{"sheet":"Facility Info","index":2,"n_rows":16,"n_cols":11,"rows_kept":16,"cut":false,"hidden":false,"merged":[[4,0,11,8],[15,0,47,8],[4,10,10,13],[15,10,24,13]]}
[{"$f":"+'Cover Page'!$B$29","v":"Annual Performance Report 2021"},null,null,null,{"$f":"+'Cover Page'!$B$33","v":"SUEZ R&R Kirklees EfW"}]
[]
["Plant Description and Design",null,null,null,null,null,null,null,null,null,"Notes:"]
[]
["This non-hazardous waste incinerator operates 24/7 and can receive up to 150,000 tonnes of municipal waste from Kirklees Council as well as commercial/trade waste. The plant has one furnace line with a processing capacity of 136,000 tonnes per annum. The heat produced by waste incineration is used to raise superheated steam which generates 9.5 MWh of electricity.\nActivities associated with the incineration are receipt and storage of municipal waste, production of steam and electricity, abatement of flue gas and handling of Incinerator Bottom Ash (IBA) and Air Pollution Control Residue (APCR).\n(alt enter to make new para)",null,null,null,null,null,null,null,null,null,"Include summary of plant design, design capacity, no. of combustion lines, electrical and heat capacity and any other general information that descibes the facility, its location and purpose "]
[]
[]
[]
[]
[]
[]
[]
[]
["Summary of Operational Processes and Procedures"]
[]
["Incoming waste is delivered to site by refuse collection trucks. It is then checked in, weighed and delivered into the reception hall.\n\nRECEPTION HALL\nA large reception hall allows for refuse collection trucks to manoeuvre and tip waste safely. Air needed for combustion is drawn into the furnace from here so that odour and dust do not escape the building.\n\nBUNKER\nWaste vehicles reverse to a wheel stop and tip their loads into a large concrete bunker. Mixing of waste occurs as the crane driver sorts the waste looking for unsuitable material to be removed, and to improve the homogeneity of the incinerator feedstock. \n\nCONTROL ROOM\nThe plant’s control room centralises the operation of all equipment, including the grab crane used to mix and load waste into a hopper that feeds the furnace. All on-site functions are monitored automatically and manually. Its systems verify in real time that equipment is functioning properly, continuously monitor the combustion gas, and maximise the efficiency of the entire EfW process.\n\nGRATE AND BOILER\nWaste is lifted into the charging hoppers by the crane. From here it falls into the furnace-charging chute and then onto the grate system for incineration. The thermal energy released from the burning is used to convert water to super-heated steam. At high pressure, this steam drives a turbine to generate electricity.\n\nELECTRICITY GENERATION\nElectricity is generated at 11kv, with an electric capacity of 9.5 MWh.\n \nINCINERATOR BOTTOM ASH (IBA)\nAsh left on the grate after incineration is carried by conveyor, after quenching, to a storage bunker. A magnet above the conveyor extracts ferrous material for recycling. The remaining bottom ash is trucked off-site for recycling.\n\nAIR-COOLED CONDENSERS\nAfter exiting the turbine, the air stream is cooled and condensed back into water through air condensers. This recovered water is treated and reused in the boilers to produce more steam.\n\nEMISSION CONTROL\nThe gases from the furnace are subject to a rigorous cleaning process involving selective non-catalytic reduction (SNCR), spray absorbers, and active carbon injection. This removes oxides of nitrogen, acidic gases, dioxins, and heavy metals from the gas stream.\n\nAIR POLLUTION CONTROL RESIDUE (APCR)\nThe cleaned gas passes through fine-fabric bag filters to remove solid particles before it is emitted through the stack. The resultant APCR residue, or fly-ash, contains particles from the incineration process, lime used in the spray absorbers, salts and carbon dust. It is stored in a sealed silo until it is tankered away for recycling.\n\nEMISSIONS MONITORING\nAs they pass through the stack, the residual flue gases from the process are continuously monitored before release. This data is relayed automatically to the control room.",null,null,null,null,null,null,null,null,null,"Include summary of key processes and procedures such as (but not limited to); waste reception, control rooms, grate, bed and bolier, energy & heat  generation, cooling systems, residue management, emission controls, health and safety systems, maintenance"]

{"sheet":"Operational Data","index":3,"n_rows":63,"n_cols":8,"rows_kept":63,"cut":false,"hidden":false,"merged":[[32,1,37,1],[29,6,29,7],[3,1,3,2],[7,1,19,1],[22,1,25,1],[27,1,28,1]]}
[{"$f":"+'Cover Page'!$B$29","v":"Annual Performance Report 2021"},null,null,null,{"$f":"+'Cover Page'!$B$33","v":"SUEZ R&R Kirklees EfW"}]
[]
["Operational Data"]
["Plant Size",135000,null,"tonnes pa",11.5,"MWth",10,"MWe"]
["No. of combustion lines",1,null,"No. of Turbines:",null,1]
[]
["Waste types received","Unit","Q1","Q2","Q3","Q4","Year Total","%"]
["Household / Local Authority","tonnes",34499,26053,36842,34762,{"$f":"SUM(C8:F8)","v":132156},{"$f":"IF(G8>0,G8/$G$18,\"-\")","v":0.98196651880252339}]
["Commercial & Industrial ",null,39,14,45,1554,{"$f":"SUM(C9:F9)","v":1652},1.2274953002979573E-2]
["Hazardous ",null,0,0,0,0,0,"-"]
["Clinical",null,95,53,89,538,775,5.7585281944970762E-3]
["Waste wood (biomass) ",null,0,0,0,0,0,"-"]
["Refuse derived fuel ",null,0,0,0,0,0,"-"]
["Solid recovered fuel ",null,0,0,0,0,0,"-"]
["Other [Please specify]",null,0,0,0,0,0,"-"]
["Other [Please specify]",null,0,0,0,0]
["Other [Please specify]",null,0,0,0,0]
["Total waste received",null,34664,26171,37042,36468,{"$f":"SUM(G8:G17)","v":134583},1]
["Rejected Waste ",null,0,0,0,0,{"$f":"SUM(C19:F19)","v":0},{"$f":"IF(G19>0,G19/$G$18,\"-\")","v":"-"}]
["Waste transferred out",null,null,null,null,null,{"$f":"SUM(C20:F20)","v":0},{"$f":"IF(G20>0,G20/$G$18,\"-\")","v":"-"}]
["Total waste combusted",null,{"$f":"C18-SUM(C19:C20)","v":34664},{"$f":"D18-SUM(D19:D20)","v":26171},37042,36468,{"$f":"SUM(C21:F21)","v":134345},{"$f":"IF(G21>0,G21/$G$18,\"-\")","v":0.99823157456736733}]
["Energy Useage / Export","Unit","Q1","Q2","Q3","Q4","Year Total","KWh/te"]
["Power Generated","MWh",20897,16314,21632,23036,{"$f":"SUM(C23:F23)","v":81879},{"$f":"IF(G23>0,G23*1000/$G$21,\"-\")","v":609.46816033346977}]
["Power Exported",null,18013,14163,18803,20191,{"$f":"SUM(C24:F24)","v":71170},{"$f":"IF(G24>0,G24*1000/$G$21,\"-\")","v":529.75548029327479}]
["Power Used on site",null,2884,2151,2829,2845,{"$f":"SUM(C25:F25)","v":10709},{"$f":"IF(G25>0,G25*1000/$G$21,\"-\")","v":79.712680040195025}]
["Power Imported",null,157,804,7,17,985,{"$f":"IF(G26>0,G26*1000/$G$21,\"-\")","v":7.3318694406193012}]
["Parasitic Load","%",{"$f":"IF(C23>0,1-C24/(C23+C26),\"-\")","v":0.14443811152275099},0.17262530669470733,0.13105966079763387,0.12414870081984997,{"$f":"IF(G23>0,1-G24/(G23+G26),\"-\")","v":0.14112280363004437}]
["Thermal Energy Produced","GWh",0,0,0,0,{"$f":"SUM(C28:F28)","v":0},{"$f":"IF(G28>0,G28*1000/$G$21,\"-\")","v":"-"}]
["Thermal Energy Exported",null,0,0,0,0,0,{"$f":"IF(G29>0,G29*1000/$G$21,\"-\")","v":"-"}]
["R1 value",null,null,null,null,null,"Design / Operational / n/a"]
[]
["Waste Disposal & Recovery","Unit","Q1","Q2","Q3","Q4","Year Total","% inputs"]
["APC Residues - produced","tonnes",1266,973,1256,4765,{"$f":"SUM(C33:F33)","v":8260},{"$f":"IF(G33>0,G33/$G$21,\"-\")","v":6.1483493989355764E-2}]
["IBA - produced",null,7068,5656,7416,26901,47041,{"$f":"IF(G34>0,G34/$G$21,\"-\")","v":0.3501507313260635}]
["Metals recycling",null,698,574,684,2607,{"$f":"SUM(C35:F35)","v":4563},3.396479213964048E-2]
["Other",null,0,0,0,0,{"$f":"SUM(C36:F36)","v":0},"-"]
["Other",null,0,0,0,0,0,"-"]
["Other",null,0,0,0,0,0,"-"]
[]
["Raw Material Usage","Unit","Q1","Q2","Q3","Q4","Year Total","kg or Ltr /te"]
["Mains Water","m3",3000,3000,3000,3000,{"$f":"SUM(C41:F41)","v":12000},{"$f":"IF(G41>0,G41/$G$21,\"-\")","v":8.9322267296884889E-2}]
["Other Water","m3",4137,3950,6497,6677,21261,{"$f":"IF(G42>0,G42/$G$21,\"-\")","v":0.1582567270832558}]
["Ammonia / Urea","kgs",86000,60000,73000,54000,273000,2.0320815810041313]
["Activated Carbon","kgs",12960,9941,13236,12357,48494,0.36096616919126129]
["Lime / hydrated lime","kgs",294000,238000,273000,245000,1050000,7.8156983884774274]
["Fuel oil","ltrs",81756,93733,15863,4884,196236,1.4606870371059586]
["Gas","cf",0,0,0,0,0,"-"]
["Other",null,0,0,0,0,0]
[]
["Summary of Hours","Line/Unit","Q1","Q2","Q3","Q4","Year Total"]
["Hours of waste combustion, total",1,2160,1672,2207,2208,{"$f":"SUM(C51:F51)","v":8247}," x %"]
["Hours of waste combustion, total",2,0,0,0,0,0,"x %"]
["Hours of waste combustion, total",3,0,0,0,0,0,"x %"]
["Hours of waste combustion, total",4,0,0,0,0,0,"x %"]
["Hours of waste combustion, total",5,0,0,0,0,{"$f":"SUM(C55:F55)","v":0},"x %"]
["Overall avaliability, mean average of all lines","hrs",2160,2136,1681,1657,1679,{"$f":"+(G56)/8760","v":0.19166666666666668}]
["Hours of turbine operations, total",1,2051,1625,2204,2196,8076,"x %"]
["Hours of turbine operations, total",2,0,0,0,0,0,"x %"]
["Hours of heat / steam export",null,0,0,0,0,0,{"$f":"IF(B59>0,G58/8760,\"n/a\")","v":"n/a"}]
["Net Calorific value of waste","MJ/kg",9.1331288750769772,9.0640468579060212,9.4075218845863873,9.7485211273352803,{"$f":"AVERAGE(C60:F60)","v":9.3383046862261665}]
["Abnormal Events","qty.",0,0,0,0,0,{"$f":"IF(G61>0,\"yes\",\"no\")","v":"no"}]
["Abnormal operation","hours",0,0,0,0,0,{"$f":"+(G62)/8760","v":0}]
["Permit Breaches","qty.",1,0,0,1,2,{"$f":"IF(G63>0,\"yes\",\"no\")","v":"yes"}]

{"sheet":"Operational Summary","index":4,"n_rows":13,"n_cols":11,"rows_kept":13,"cut":false,"hidden":false,"merged":[[4,0,8,8],[4,10,7,13],[12,10,12,13],[12,0,12,8]]}
[{"$f":"+'Cover Page'!$B$29","v":"Annual Performance Report 2021"},null,null,null,{"$f":"+'Cover Page'!$B$33","v":"SUEZ R&R Kirklees EfW"}]
[]
["Summary of Plant Operations and Maintenance during the reporting year",null,null,null,null,null,null,null,null,null,"Notes:"]
[]
["Operations: 2 hours of unplanned downtime. The Issues were: Bottom ash extractor hydraulic drive motor failure. OEE has been excellent with minimum speed and quality losses. A Glass line coating has been applied in 2 of the 4 BHF hoppersas a trail to improve life cycle. A full set of new BHF bags have been fitted aswell aswel as a full new set of grate bars. ",null,null,null,null,null,null,null,null,null,"Include summary of key operational and/or mainteanance activity undertaken in the year, such as any major component upgrades and/or replacements "]
[]
[]
[]
[]
[]
["Summary of Residue Handling for the reporting year"]
[]
["Canal side Wet slag extractor hydraulic drive motor failure. new componet fitted and extra checks put in place. Burn out quality has been very good all year even more so after a full set of 3 grates were fitted in the May outage, APCR contiues to be taken off site by Castle environment. No IBA exceedance but Investigations carried out if above 90% of limits.",null,null,null,null,null,null,null,null,null,"Include in here a summary of residue handling regimes and destinations "]

{"sheet":"Perf. Form 1","index":5,"n_rows":54,"n_cols":10,"rows_kept":54,"cut":false,"hidden":false,"merged":[[9,0,9,9],[10,0,10,1],[10,2,10,3],[10,4,10,5],[10,6,10,7],[10,8,10,9],[2,0,2,4],[2,6,2,8],[3,1,3,4],[5,3,5,4],[5,6,5,7],[8,0,8,1],[8,2,8,3],[8,4,8,5],[8,6,8,7],[8,8,8,9],[11,0,11,1],[11,2,11,3],[11,4,11,5],[11,6,11,7],[11,8,11,9],[12,0,12,1],[12,2,12,3],[12,4,12,5],[12,6,12,7],[12,8,12,9],[15,0,15,1],[15,2,15,3],[15,4,15,5],[15,6,15,7],[15,8,15,9],[16,0,16,9],[13,0,13,1],[13,2,13,3],[13,4,13,5],[13,6,13,7],[13,8,13,9],[14,0,14,3],[14,4,14,5],[14,6,14,7],[14,8,14,9],[17,0,17,1],[17,2,17,3],[17,4,17,5],[17,6,17,7],[17,8,17,9],[18,0,18,1],[18,2,18,3],[18,4,18,5],[18,6,18,7],[18,8,18,9],[19,0,19,1],[19,2,19,3],[19,4,19,5],[19,6,19,7],[19,8,19,9],[20,0,20,1],[20,2,20,3],[20,4,20,5],[20,6,20,7],[20,8,20,9],[21,0,21,1],[21,2,21,3],[21,4,21,5],[21,6,21,7],[21,8,21,9],[22,0,22,3],[22,4,22,5],[22,6,22,7],[22,8,22,9],[31,0,31,3],[31,7,31,8],[32,0,32,3],[32,4,32,5],[32,7,32,8],[33,0,33,3],[33,4,33,5],[33,7,33,8],[23,0,23,3],[23,4,23,5],[23,6,23,7],[23,8,23,9],[25,0,25,9],[26,0,28,9],[36,0,36,3],[36,4,36,5],[36,7,36,8],[37,0,37,3],[37,4,37,5],[37,7,37,8],[34,0,34,3],[34,4,34,5],[34,7,34,8],[35,0,35,3],[35,4,35,5],[35,7,35,8],[47,0,47,1],[49,0,49,9],[50,0,51,9],[38,0,38,9],[39,0,40,9],[43,0,43,1],[43,2,43,9],[45,0,45,1],[46,0,46,1]]}
[{"$f":"+'Cover Page'!C39","v":2021}," Annual Reporting Performance Form 1"]
[]
[{"$f":"+'Cover Page'!B31","v":"Permit EPR/BJ6178IX"},null,null,null,null,"Operator: ",{"$f":"+'Cover Page'!B37","v":"Kirklees EfW"}]
["Facility:",{"$f":"+'Cover Page'!B33:I33","v":"SUEZ R&R Kirklees EfW"},null,null,null,"Form:","Performance 1"]
[]
["Reporting  Period from: ",null,null,"2021-01-01",null,"to:","2021-12-31"]
[]
[{"$f":"+A1","v":2021},"Annual Reporting of Waste Disposal and Recovery"]
["Waste Description",null,"Disposal Route(s)",null,"Disposal Tonnes",null,"Recovery Tonnes",null,"% / tonne of waste incinerated"]
["1) Hazardous Wastes"]
["APC Residues",null,null,null,4765,null,null,null,{"$f":"IF((E11+G11)>0,(E11+G11)/'Operational Data'!$G$21, \"-\")","v":3.546838363913804E-2}]
["IBA",null,null,null,null,null,null,null,{"$f":"IF((E12+G12)>0,(E12+G12)/'Operational Data'!$G$21, \"-\")","v":"-"}]
[null,null,null,null,null,null,null,null,{"$f":"IF((E13+G13)>0,(E13+G13)/'Operational Data'!$G$21, \"-\")","v":"-"}]
[null,null,null,null,null,null,null,null,{"$f":"IF((E14+G14)>0,(E14+G14)/'Operational Data'!$G$21, \"-\")","v":"-"}]
["Total Hazardous Waste",null,null,null,{"$f":"SUM(E11:F14)","v":4765},null,{"$f":"SUM(G11:H14)","v":0},null,{"$f":"IF((E15+G15)>0,(E15+G15)/'Operational Data'!$G$21, \"-\")","v":3.546838363913804E-2}]
[]
["2) Non-Hazardous Wastes"]
["IBA",null,null,null,26901,null,null,null,{"$f":"IF((E18+G18)>0,(E18+G18)/'Operational Data'!$G$21, \"-\")","v":0.2002381927127917}]
["Ferrous Metal",null,null,null,2607,null,null,null,{"$f":"IF((E19+G19)>0,(E19+G19)/'Operational Data'!$G$21, \"-\")","v":1.9405262570248241E-2}]
["Process Water",null,null,null,0,null,null,null,{"$f":"IF((E20+G20)>0,(E20+G20)/'Operational Data'!$G$21, \"-\")","v":"-"}]
[null,null,null,null,null,null,null,null,{"$f":"IF((E21+G21)>0,(E21+G21)/'Operational Data'!$G$21, \"-\")","v":"-"}]
[null,null,null,null,null,null,null,null,{"$f":"IF((E22+G22)>0,(E22+G22)/'Operational Data'!$G$21, \"-\")","v":"-"}]
["Total Non-Hazardous Waste",null,null,null,{"$f":"SUM(E18:F22)","v":29508},null,{"$f":"SUM(G18:H22)","v":0},null,{"$f":"IF((E23+G23)>0,(E23+G23)/'Operational Data'!$G$21, \"-\")","v":0.21964345528303994}]
["TOTAL WASTE",null,null,null,{"$f":"+E23+E15","v":34273},null,{"$f":"+G23+G15","v":0},null,{"$f":"IF((E24+G24)>0,(E24+G24)/'Operational Data'!$G$21, \"-\")","v":0.25511183892217798}]
[]
["Operator’s comments :"]
[]
[]
[]
[]
[{"$f":"+A1","v":2021},"Annual Reporting of Water and Other Raw Material Usage"]
["Raw Material",null,null,null,"Usage",null,"Unit","Specific Useage",null,"Unit"]
["Mains Water",null,null,null,{"$f":"+'Operational Data'!G41","v":12000},null,"m3",{"$f":"IF(E33>0,E33/'Operational Data'!$G$21,\"-\")","v":8.9322267296884889E-2},null,"m3/te"]
["Total Water",null,null,null,{"$f":"+'Operational Data'!G42+'Operational Data'!G41","v":33261},null,"m3",{"$f":"IF(E34>0,E34/'Operational Data'!$G$21,\"-\")","v":0.24757899438014069},null,"m3/te"]
["Urea / Ammonia",null,null,null,{"$f":"+'Operational Data'!G43","v":273000},null,"kg",{"$f":"IF(E35>0,E35/'Operational Data'!$G$21,\"-\")","v":2.0320815810041313},null,"kg/te"]
["Activated Carbon",null,null,null,{"$f":"+'Operational Data'!G44","v":48494},null,"kg",{"$f":"IF(E36>0,E36/'Operational Data'!$G$21,\"-\")","v":0.36096616919126129},null,"kg/te"]
["Lime / hydrated lime / Sodium Bicarb.",null,null,null,{"$f":"+'Operational Data'!G45","v":1050000},null,"kg",{"$f":"IF(E37>0,E37/'Operational Data'!$G$21,\"-\")","v":7.8156983884774274},null,"kg/te"]
[]
["Operator’s comments :"]
[]
[]
[]
[{"$f":"+A31","v":2021},"Annual Reporting of other performance indicators "]
["Parameter",null,"Results by Line"]
[null,null,"A1","A2","A3","A4","A5",null,"Turbine 1","Turbine 2"]
["Operating hours for the year, hours",null,{"$f":"'Operational Data'!G51","v":8247},0,0,0,0,0,0,0]
["Number of periods of abnormal operation, qty.",null,{"$f":"'Operational Data'!G61","v":0},0,0,0,0,0,0,0]
["Cumulative hours of abnormal operation for this year, hours",null,{"$f":"'Operational Data'!G62","v":0},0,0,0,0,0,0,0]
[]
["Operator’s comments :"]
[]
[]
[]
["Signed: ",null,null,null,null,null,"Date:"]

{"sheet":"Energy Form 1","index":6,"n_rows":24,"n_cols":7,"rows_kept":24,"cut":false,"hidden":false,"merged":[[2,6,2,8],[4,1,4,4],[6,3,6,4],[6,6,6,7],[8,0,8,2],[8,3,8,4],[8,6,8,8],[9,0,9,2],[9,3,9,4],[9,6,9,8],[10,0,10,2],[10,3,10,4],[10,6,10,8],[11,0,11,2],[11,3,11,4],[11,6,11,8],[12,0,12,2],[12,3,12,4],[12,6,12,8],[16,0,16,8],[17,0,19,8],[13,0,13,2],[13,3,13,4],[13,6,13,8],[14,0,14,2],[14,3,14,4],[14,6,14,8]]}
[{"$f":"+'Cover Page'!C39","v":2021}," Annual Reporting of Energy Usage/Export"]
[]
[{"$f":"+'Cover Page'!B31","v":"Permit EPR/BJ6178IX"},null,null,null,null,"Operator: ",{"$f":"+'Cover Page'!B37","v":"Kirklees EfW"}]
[]
["Facility:",{"$f":"+'Cover Page'!B33:I33","v":"SUEZ R&R Kirklees EfW"},null,null,null,"Form:","Energy 1"]
[]
["Reporting  Period from: ",null,null,{"$f":"+'Perf. Form 1'!D6:E6","v":"2021-01-01"},null,"to:",{"$f":"+'Perf. Form 1'!G6:H6","v":"2021-12-31"}]
[]
["Energy Source",null,null,"Energy Usage",null,"Unit","Specific Useage (KWh/tonne incinerated"]
["Electricity Produced",null,null,{"$f":"+'Operational Data'!G23","v":81879},null,"MWh",{"$f":"+'Operational Data'!H23","v":609.46816033346977}]
["Electricity Imported   ",null,null,{"$f":"+'Operational Data'!G26","v":985},null,"MWh",{"$f":"+'Operational Data'!H26","v":7.3318694406193012}]
["Electricity Exported",null,null,{"$f":"+'Operational Data'!G24","v":71170},null,"MWh",{"$f":"+'Operational Data'!H24","v":529.75548029327479}]
["Gas Oil",null,null,"-",null,"tonnes",{"$f":"+'Operational Data'!H28","v":"-"}]
["Steam/hot water exported",null,null,"-",null,"GWh",{"$f":"+'Operational Data'!H29","v":"-"}]
[]
[]
["Operator’s comments :"]
[]
[]
[]
[]
[]
[]
["Signed: ",null,null,null,null,null,"Date:"]

{"sheet":"Permit Compliance","index":7,"n_rows":28,"n_cols":8,"rows_kept":28,"cut":false,"hidden":false,"merged":[[27,4,27,8],[9,0,9,1],[9,2,9,4],[9,5,9,8],[7,0,7,1],[7,2,7,8],[8,0,8,1],[8,2,8,4],[8,5,8,8],[10,0,10,1],[10,2,10,4],[10,5,10,8],[11,0,11,1],[11,2,11,4],[11,5,11,8],[12,0,12,1],[12,2,12,4],[12,5,12,8],[13,0,13,1],[13,2,13,4],[13,5,13,8],[14,0,14,1],[14,2,14,4],[14,5,14,8],[15,0,15,1],[15,2,15,4],[15,5,15,8],[16,0,16,10],[25,1,25,3],[25,4,25,6],[25,7,25,9],[17,1,17,3],[17,4,17,6],[17,7,17,9],[18,1,18,3],[18,4,18,6],[18,7,18,9],[19,4,19,6],[19,7,19,8],[19,1,19,3],[26,1,26,3],[26,4,26,6],[26,7,26,9],[20,1,20,3],[20,4,20,6],[20,7,20,9],[22,1,22,3],[22,4,22,6],[24,0,24,10],[21,4,21,6],[21,1,21,3],[21,7,21,9],[22,7,22,8]]}
[{"$f":"+'Cover Page'!$B$29","v":"Annual Performance Report 2021"},null,null,null,{"$f":"+'Cover Page'!$B$33","v":"SUEZ R&R Kirklees EfW"}]
[]
["Summary of Permit Compliance"]
[]
["Compliance with permit limits for continuously monitored pollutants"]
[]
["The plant met its emission limits as shown in the table below:"]
["Substance",null,"Percentage time compliant during operation"]
[null,null,"Half-hourly limit",null,null,"Daily limit"]
["Particulates",null,1,null,null,1]
["Oxides of nitrogen",null,1,null,null,1]
["Sulphur dioxide",null,1,null,null,1]
["Carbon monoxide",null,"100%, 95% of 10-min averages",null,null,1]
["Total organic carbon",null,1,null,null,1]
["Hydrogen chloride",null,1,null,null,1]
["Hydrogen fluoride",null,1,null,null,1]
["Summary of any notifications or non-compliances under the permit"]
["Date","Summary of notification or non-compliance [including Line/Reference]",null,null,"Reason ",null,null,"Measures taken to prevent reoccurrence"]
["2021-02-05","Reportable - Hydrogen fluride breach on Bi Annual testing ",null,null,"Poor combustion on the day of testing with burners used to support process  ",null,null,"Re test booked at earliest opertunity  and passed "]
[]
[]
[]
[]
[]
["Summary of any complaints received and actions to taken to resolve them."]
["Date","Summary of complaint [including Line/Reference]",null,null,"Reason *",null,null,"Measures taken to prevent reoccurrence"]
[]
[null,null,null,null,"* including whether substantiated by the operator or the EA"]

{"sheet":"Improvements","index":8,"n_rows":19,"n_cols":5,"rows_kept":19,"cut":false,"hidden":false,"merged":[[17,0,17,9],[18,0,19,9],[4,0,4,9],[5,0,7,9],[9,0,9,9],[10,0,11,9],[13,0,13,9],[14,0,15,9]]}
[{"$f":"+'Cover Page'!$B$29","v":"Annual Performance Report 2021"},null,null,null,{"$f":"+'Cover Page'!$B$33","v":"SUEZ R&R Kirklees EfW"}]
[]
["Summary of Plant Improvements"]
[]
["Summary of any efficiency improvements that have been completed within the year."]
["Very minimal improvement made to plant during 2021 due to contract postion. Lots of work has gone in to contract position to secure an extension till 2025. We have been carrying out trails in reducincing flue gas temperatures in the reaction chamber which is showing a positive effect in the reduction of lime used and APCR produced. "]
[]
[]
[]
["Summary of any permit improvement conditions that have been completed within the year and the resulting environmental benefits."]
["N/A"]
[]
[]
["Summary of any changes to the plant or operating techniques which required a variation to the permit and a summary of the resulting environmental impact."]
["N/A"]
[]
[]
["Summary of any other improvements made to the plant or planned to be made and a summary of the resulting environmental benefits."]
["N/A"]

{"sheet":"Public Liasion","index":9,"n_rows":19,"n_cols":5,"rows_kept":19,"cut":false,"hidden":false,"merged":[[12,0,12,1],[12,2,12,9],[5,0,5,1],[5,2,5,9],[6,0,7,1],[6,2,7,9],[8,0,9,1],[8,2,9,9],[11,0,11,9],[13,0,14,1],[13,2,14,9],[15,0,16,1],[15,2,16,9],[18,0,18,9]]}
[{"$f":"+'Cover Page'!$B$29","v":"Annual Performance Report 2021"},null,null,null,{"$f":"+'Cover Page'!$B$33","v":"SUEZ R&R Kirklees EfW"}]
[]
["Details of Public & Stakeholder Liasion"]
[]
["Summary of events held during the reporting year."]
["Date",null,"Description"]
["Monthly",null,"Monthly operational & contractual meeting held with the client (Kirklees Council)."]
[]
[]
[]
[]
["List of events planned for next year"]
["Date",null,"Description"]
["Monthly",null,"Monthly operational & contractual meeting held with the client (Kirklees Council)"]
[]
[]
[]
[]
["If you wish to be involved in the public liasion programme, please contact _________________"]

{"sheet":"Residue Quality ","index":10,"n_rows":30,"n_cols":6,"rows_kept":30,"cut":false,"hidden":false,"merged":[[5,0,6,6],[7,0,8,6],[9,0,10,6],[14,0,15,1],[14,2,15,6],[12,0,12,6],[13,0,13,1],[13,2,13,6],[16,0,17,1],[16,2,17,6],[25,3,25,4],[21,2,22,2],[22,3,22,4],[22,5,22,6],[21,3,21,6],[20,0,20,6],[29,0,30,6],[26,3,26,4],[28,0,28,6],[21,0,22,1],[23,0,23,1],[24,0,24,1],[25,0,25,1],[26,0,26,1],[23,3,23,4],[24,3,24,4],[23,5,23,6],[24,5,24,6],[25,5,25,6],[26,5,26,6]]}
[{"$f":"+'Cover Page'!$B$29","v":"Annual Performance Report 2021"},null,null,null,{"$f":"+'Cover Page'!$B$33","v":"SUEZ R&R Kirklees EfW"}]
[]
["Residue Quality Monitoring Requirements"]
[]
["Summary of monitoring undertaken and compliance"]
["Quarterly IBA and APCR samples are taken at Kirklees"]
[]
["Weekly hazard assessments are carried out at Kirklees"]
[]
[]
[]
[]
["Commentary on any specific events"]
["Date & Event",null,"Description"]
[]
[]
[]
[]
[]
[]
["Residue Quality Monitoring Results"]
["Parameter (unit) ",null,"Limit","Normal Operation "]
[null,null,null,"Bottom ash  ",null,"APC Residues"]
["Loss on Ignition (%)",null,"<5%","-"]
["ToC (%)",null,"<3%",1.2500000000000001E-2]
["No. of Assessments Undertaken",null,"---","1 per quarter Line 1"]
["No. of Hazardous Assessments",null,"---","Weekly hazard assessments unless Plant is on outage"]
[]
["Comments :"]
["Quarterly samples are taken for 1 line none of the samples results for TOC were above 3%"]

{"sheet":"Water","index":11,"n_rows":20,"n_cols":10,"rows_kept":20,"cut":false,"hidden":false,"merged":[[12,0,13,1],[12,2,13,9],[14,0,15,1],[14,2,15,9],[5,0,6,9],[7,0,8,9],[10,0,10,9],[11,0,11,1],[11,2,11,9],[20,0,20,2],[20,3,20,5],[19,0,19,2],[19,3,19,5],[17,0,17,9],[18,0,18,2],[18,3,18,5]]}
[{"$f":"+'Cover Page'!$B$29","v":"Annual Performance Report 2021"},null,null,null,{"$f":"+'Cover Page'!$B$33","v":"SUEZ R&R Kirklees EfW"}]
[]
["Emissions to Water"]
[]
["Summary of monitoring undertaken and compliance"]
["No Water sampling carried out at Kirklees "]
[]
[]
[]
[]
["Commentary on any specific events"]
["Date & Event",null,"Description"]
["N/A",null,"N/A"]
[]
[]
[]
[]
["Emissions to Water / Sewer"]
["Parameter",null,null,"Monitoring Frequency",null,null,"Limit","Target","Max.","Average"]
["N/A",null,null,"N/A",null,null,"N/A","N/A","N/A","N/A"]

{"sheet":"Air (periodic)","index":12,"n_rows":39,"n_cols":13,"rows_kept":39,"cut":false,"hidden":false,"merged":[[5,12,8,15],[9,12,11,15],[8,0,8,9],[5,0,6,9],[11,0,11,1],[12,0,12,1],[11,3,11,4],[12,3,12,4],[9,0,10,1],[9,5,9,9],[9,3,10,4],[9,2,10,2],[16,0,16,1],[17,0,17,1],[18,0,18,1],[13,0,13,1],[14,0,14,1],[15,0,15,1],[39,0,39,9],[25,0,25,1],[26,0,26,1],[22,0,22,1],[23,0,23,1],[37,0,37,1],[27,0,27,1],[28,0,28,1],[29,0,29,1],[30,0,30,1],[31,0,31,1],[32,0,32,1],[37,3,37,4],[29,3,29,4],[30,3,30,4],[36,3,36,4],[38,0,38,9],[19,0,19,1],[20,0,20,1],[21,0,21,1],[34,3,34,4],[35,3,35,4],[33,0,33,1],[34,0,34,1],[35,0,35,1],[36,0,36,1],[24,0,24,1],[32,3,32,4],[13,3,13,4],[14,3,14,4],[15,3,15,4],[16,3,16,4],[17,3,17,4],[18,3,18,4],[27,3,27,4],[33,3,33,4],[19,3,19,4],[20,3,20,4],[21,3,21,4],[22,3,22,4],[23,3,23,4],[24,3,24,4],[31,3,31,4],[25,3,25,4],[26,3,26,4],[28,3,28,4]]}
[{"$f":"+'Cover Page'!$B$29","v":"Annual Performance Report 2021"},null,null,null,{"$f":"+'Cover Page'!$B$33","v":"SUEZ R&R Kirklees EfW"}]
[]
["Emissions to Air (periodically monitored)"]
[]
["Summary of monitoring undertaken, standards used and compliance",null,null,null,null,null,null,null,null,null,null,null,"Notes:"]
["H1 and H2 testing carried out biannually. ",null,null,null,null,null,null,null,null,null,null,null,"Template may require adjustment for any bespoke monitoring requirements of permit. "]
[]
[]
["Results of emissions to air that are periodically monitored"]
["Substance",null,"Ref. Period","Emission Limit Value",null,"Average",null,null,null,null,null,null,"User to add additional tables as necessary, depending on whether quarterly or bi-annual reporting is required for the compliance year"]
[null,null,null,null,null,"A1","A2","A3","A4","A5"]
["Hydrogen fluoride",null,"1 hr","2 mg/m3",null,3.42,0,0,0,0]
["Cd and Th and their compounds",null,"6-8hrs","0.05 mg/m3",null,1.5E-3,0,0,0,0]
["Hg and its compounds",null,"6-8hrs","0.05 mg/m3",null,2E-3,0,0,0,0]
["Sb, As, Pb, Cr, Co, Cu, Mn, Ni, V and their compounds",null,"6-8hrs","0.5 mg/m3",null,0.32550000000000001,0,0,0,0]
["Dioxins & Furans (I-TEQ)",null,"6-8hrs","0.1 ng/m3",null,7.9000000000000008E-3,0,0,0,0]
["PCBs (WHO-TEQ Humans / Mammals)",null,"6-8hrs","None set ng/m3",null,7.6749999999999995E-4,0,0,0,0]
["PCBs (WHO-TEQ Fish)",null,"6-8hrs","None set ng/m3",null,6.0999999999999999E-5,0,0,0,0]
["PCBs (WHO-TEQ Birds)",null,"6-8hrs","None set ng/m3",null,3.3839999999999999E-3,0,0,0,0]
["Dioxins & Furans (WHO-TEQ Humans / Mammals)",null,"6-8hrs","None set ng/m3",null,2.8500000000000001E-2,0,0,0,0]
["Dioxins & Furans (WHO-TEQ Fish)",null,"6-8hrs","None set ng/m3",null,5.5999999999999999E-3,0,0,0,0]
["Dioxins & Furans (WHO-TEQ Birds)",null,"6-8hrs","None set ng/m3",null,1.196E-2,0,0,0,0]
["Anthanthrene",null,"6-8hrs","None set µg/m3",null,1.0999999999999999E-2,0,0,0,0]
["Benzo(a)anthracene",null,"6-8hrs","None set µg/m3",null,0.4965,0,0,0,0]
["Benzo(a)pyrene",null,"6-8hrs","None set µg/m3",null,0.08,0,0,0,0]
["Benzo(b)fluoranthene",null,"6-8hrs","None set µg/m3",null,0.1085,0,0,0,0]
["Benzo(b)naptho(2,1-d) thiophene",null,"6-8hrs","None set µg/m3",null,0.27,0,0,0,0]
["Benzo(c)phenanthrene",null,"6-8hrs","None set µg/m3",null,0.27,0,0,0,0]
["Benzo(ghi)perylene",null,"6-8hrs","None set µg/m3",null,1.9E-2,0,0,0,0]
["Benzo(k)fluoranthene",null,"6-8hrs","None set µg/m3",null,4.5999999999999999E-2,0,0,0,0]
["Cholanthrene",null,"6-8hrs","None set µg/m3",null,1.0999999999999999E-2,0,0,0,0]
["Chrysene",null,"6-8hrs","None set µg/m3",null,0.45800000000000002,0,0,0,0]
["Cyclopenta(cd)pyrene",null,"6-8hrs","None set µg/m3",null,0.01,0,0,0,0]
["Dibenzo(ai)pyrene",null,"6-8hrs","None set µg/m3",null,2.0000000000000001E-4,0,0,0,0]
["Dibenzo(ah)anthracene",null,"6-8hrs","None set µg/m3",null,0.01,0,0,0,0]
["Fluoranthene",null,"6-8hrs","None set µg/m3",null,12.3535,0,0,0,0]
["Indeno(123-cd) pyrene",null,"6-8hrs","None set µg/m3",null,0.03,0,0,0,0]
["Naphthalene",null,"6-8hrs","None set µg/m3",null,133.76499999999999,0,0,0,0]
["Comments :"]

{"sheet":"Air (CEMS)","index":13,"n_rows":27,"n_cols":16,"rows_kept":27,"cut":false,"hidden":false,"merged":[[25,0,25,12],[27,0,27,12],[11,0,12,0],[5,0,6,12],[8,0,8,12],[9,0,10,0],[9,2,10,2],[9,1,10,1],[9,3,9,4],[9,5,9,6],[9,7,9,8],[9,9,9,10],[9,11,9,12]]}
[{"$f":"+'Cover Page'!$B$29","v":"Annual Performance Report 2021"},null,null,null,null,null,null,null,{"$f":"+'Cover Page'!$B$33","v":"SUEZ R&R Kirklees EfW"}]
[]
["Emissions to Air (continously monitored)"]
[null,null,null,null,null,null,null,null,null,null,null,null,null,null,null,"Notes:"]
["Summary of monitoring undertaken, standards used and compliance",null,null,null,null,null,null,null,null,null,null,null,null,null,null,"Template may require adjustment for any bespoke monitoring requirements of permit"]
["Continuous monitoring of the parameters below. "]
[]
[]
["Results of emissions to air that are continuously monitored"]
["Substance","Reference Period","Emission Limit Value","A1",null,"A2",null,"A3",null,"A4",null,"A5"]
[null,null,null,"Max.","Avg.","Max.","Avg.","Max.","Avg.","Max.","Avg.","Max.","Avg."]
["Oxides of nitrogen","Daily mean","200 mg/m3 ",{"$f":"NOx!$O$19","v":203.2},{"$f":"NOx!$N$19","v":184.01666666666665}]
[null,"½ hourly mean","400 mg/m3 ",{"$f":"NOx!$M$19","v":354.5},{"$f":"NOx!$L$19","v":184.13636363636363}]
["Particulates","Daily mean","10 mg/m3",{"$f":"Particulates!$O$19","v":19.600000000000001},{"$f":"Particulates!$N$19","v":2.1083333333333329}]
[null,"½ hourly mean","30 mg/m3 ",{"$f":"Particulates!$M$19","v":41.3},{"$f":"Particulates!$L$19","v":2.1083333333333329}]
["Total Organic Carbon ","Daily mean","10 mg/m3 ",{"$f":"TOC!$O$19","v":2.8},{"$f":"TOC!$N$19","v":0.85833333333333339}]
[null,"½ hourly mean","20 mg/m3 ",{"$f":"TOC!$M$19","v":13.5},{"$f":"TOC!$L$19","v":0.85833333333333339}]
["Hydrogen chloride ","Daily mean","10 mg/m3 ",{"$f":"HCl!$O$19","v":7.3},{"$f":"HCl!$N$19","v":3.8416666666666663}]
[null,"½ hourly mean","60 mg/m3 ",{"$f":"HCl!$M$19","v":73.7},{"$f":"HCl!$L$19","v":3.8416666666666663}]
["Sulphur dioxide","Daily mean","50 mg/m3 ",{"$f":"'SO2'!$O$19","v":40},{"$f":"'SO2'!$N$19","v":10.991666666666669}]
[null,"½ hourly mean","200 mg/m3 ",{"$f":"'SO2'!$M$19","v":177.9},{"$f":"'SO2'!$L$19","v":10.991666666666669}]
["Carbon monoxide ","Daily mean","50 mg/m3 ",{"$f":"'CO 95% 10 min'!Q19","v":43.5},{"$f":"'CO 95% 10 min'!P19","v":23.458333333333332}]
[null,"½ hourly mean *","100 mg/m3 *"]
[null,"95%ile 10-min avg *","150 mg/m3 *",{"$f":"'CO 95% 10 min'!M19","v":95.991666666666674}]
[" Ammonia","Daily mean","No limit set",{"$f":"'NH3'!$O$19","v":224.1},{"$f":"'NH3'!$N$19","v":188.43333333333337}]
["* = delete or amend as appropriate"]
["Comments :"]

{"sheet":"HCl","index":14,"n_rows":48,"n_cols":17,"rows_kept":48,"cut":false,"hidden":false,"merged":[[12,16,15,18],[51,9,63,9],[66,9,78,9],[4,9,4,14],[4,1,4,3],[4,4,4,6],[48,0,51,6],[47,0,47,6],[6,9,18,9],[21,9,33,9],[36,9,48,9],[3,16,7,18],[9,16,11,18]]}
[{"$f":"+'Cover Page'!$B$29","v":"Annual Performance Report 2021"},null,null,null,{"$f":"+'Cover Page'!$B$33","v":"SUEZ R&R Kirklees EfW"}]
[]
["Monitoring of Hydrogen Chloride emissions",null,null,"Whole Installation",null,null,"See  Notes in Cell Q3",null,null,{"$f":"+A3","v":"Monitoring of Hydrogen Chloride emissions"},null,null,null,"Per Combustion Line",null,null,"Notes:"]
[null,null,null,null,null,null,null,null,null,null,null,null,null,null,null,null,"User to add logic to complete Whole installation, Table A5:G18. From the data in Per Combustion Line, Table J6:O79, subject to No. of lines installed"]
["mg/Nm3","1/2 Hourly Reference Periods",null,null,"Daily Reference Periods"]
[{"$f":"+'Cover Page'!C39","v":2021},"1/2 hourly HCl ELV","Monthly 1/2 hourly mean","Highest 1/2 hourly maximum","Daily HCl ELV","Monthly daily mean","Highest daily maximum",null,null,{"$f":"+A6","v":2021},"mg/Nm3","Monthly 1/2 hourly mean","Monthly 1/2 hourly maximum","Monthly daily mean","Monthly daily maximum"]
["Jan",60,{"$f":"L7","v":3.2},{"$f":"M7","v":49.5},10,{"$f":"N7","v":3.2},{"$f":"O7","v":5.5},null,null,"A1","Jan",3.2,49.5,3.2,5.5]
["Feb",60,{"$f":"L8","v":3},{"$f":"M8","v":29.1},10,{"$f":"N8","v":3},{"$f":"O8","v":4.2},null,null,null,"Feb",3,29.1,3,4.2]
["Mar",60,4,52.4,10,4,5.7,null,null,null,"Mar",4,52.4,4,5.7,null,"Whole Installation table A5:G18:"]
["Apr",60,5,47.7,10,5,7.3,null,null,null,"Apr",5,47.7,5,7.3,null,"Mean: for 1/2 hourly and daily periods calculate mean of values across all operational combustion lines for the month"]
["May",60,1.9,4.5,10,1.9,2.8,null,null,null,"May",1.9,4.5,1.9,2.8]
["Jun",60,3.6,33,10,3.6,5.4,null,null,null,"Jun",3.6,33,3.6,5.4]
["Jul",60,4.0999999999999996,15,10,4.0999999999999996,6.5,null,null,null,"Jul",4.0999999999999996,15,4.0999999999999996,6.5,null,"Maximum: for 1/2 hourly and daily periods use the highest value across all operational combustion lines for the month"]
["Aug",60,4.5,73.7,10,4.5,6.3,null,null,null,"Aug",4.5,73.7,4.5,6.3]
["Sep",60,3.8,39.9,10,3.8,5.3,null,null,null,"Sep",3.8,39.9,3.8,5.3]
["Oct",60,4,14.3,10,4,5,null,null,null,"Oct",4,14.3,4,5]
["Nov",60,4.4000000000000004,33.1,10,4.4000000000000004,5.7,null,null,null,"Nov",4.4000000000000004,33.1,4.4000000000000004,5.7]
["Dec",60,4.5999999999999996,17.899999999999999,10,4.5999999999999996,6.2,null,null,null,"Dec",4.5999999999999996,17.899999999999999,4.5999999999999996,6.2]
[null,null,null,null,null,null,null,null,null,null,"Annual",{"$f":"AVERAGE(L7:L18)","v":3.8416666666666663},{"$f":"MAX(M7:M18)","v":73.7},{"$f":"AVERAGE(N7:N18)","v":3.8416666666666663},{"$f":"MAX(O7:O18)","v":7.3}]
[]
[]
[]
[]
[]
[]
[]
[]
[]
[]
[]
[]
[]
[]
[]
[]
[]
[]
[]
[]
[]
[]
[]
[]
[]
[]
[]
[]
["Comments :"]

{"sheet":"SO2","index":15,"n_rows":48,"n_cols":17,"rows_kept":48,"cut":false,"hidden":false,"merged":[[3,16,7,18],[9,16,11,18],[12,16,15,18],[66,9,78,9],[4,1,4,3],[4,4,4,6],[4,9,4,14],[6,9,18,9],[21,9,33,9],[36,9,48,9],[47,0,47,6],[48,0,51,6],[51,9,63,9]]}
[{"$f":"+'Cover Page'!$B$29","v":"Annual Performance Report 2021"},null,null,null,{"$f":"+'Cover Page'!$B$33","v":"SUEZ R&R Kirklees EfW"}]
[]
["Monitoring of Sulphur dioxide emissions",null,null,"Whole Installation",null,null,"See  Notes in Cell Q3",null,null,{"$f":"+A3","v":"Monitoring of Sulphur dioxide emissions"},null,null,null,"Per Combustion Line",null,null,"Notes:"]
[null,null,null,null,null,null,null,null,null,null,null,null,null,null,null,null,"User to add logic to complete Whole installation, Table A5:G18. From the data in Per Combustion Line, Table J6:O79, subject to No. of lines installed"]
["mg/Nm3","1/2 Hourly Reference Periods",null,null,"Daily Reference Periods"]
[{"$f":"+'Cover Page'!C39","v":2021},"1/2 hourly SO2 ELV","Monthly 1/2 hourly mean","Highest 1/2 hourly maximum","Daily SO2 ELV","Monthly daily mean","Highest daily maximum",null,null,{"$f":"+A6","v":2021},"mg/Nm3","Monthly 1/2 hourly mean","Monthly 1/2 hourly maximum","Monthly daily mean","Monthly daily maximum"]
["Jan",200,{"$f":"L7","v":9.8000000000000007},{"$f":"M7","v":86.5},50,{"$f":"N7","v":9.8000000000000007},{"$f":"O7","v":16.8},null,null,"A1","Jan",9.8000000000000007,86.5,9.8000000000000007,16.8]
["Feb",200,{"$f":"L8","v":14.7},{"$f":"M8","v":41.3},50,{"$f":"N8","v":14.7},{"$f":"O8","v":19.3},null,null,null,"Feb",14.7,41.3,14.7,19.3]
["Mar",200,10.7,70.5,50,10.7,17.7,null,null,null,"Mar",10.7,70.5,10.7,17.7,null,"Whole Installation table A5:G18:"]
["Apr",200,9.6999999999999993,63.2,50,9.6999999999999993,17.899999999999999,null,null,null,"Apr",9.6999999999999993,63.2,9.6999999999999993,17.899999999999999,null,"Mean: for 1/2 hourly and daily periods calculate mean of values across all operational combustion lines for the month"]
["May",200,20.2,177.9,50,20.2,40,null,null,null,"May",20.2,177.9,20.2,40]
["Jun",200,17.600000000000001,52.2,50,17.600000000000001,29.8,null,null,null,"Jun",17.600000000000001,52.2,17.600000000000001,29.8]
["Jul",200,12.9,131.69999999999999,50,12.9,19.8,null,null,null,"Jul",12.9,131.69999999999999,12.9,19.8,null,"Maximum: for 1/2 hourly and daily periods use the highest value across all operational combustion lines for the month"]
["Aug",200,8.9,117.1,50,{"$f":"N14","v":8.9},18.8,null,null,null,"Aug",8.9,117.1,8.9,18.8]
["Sep",200,5.0999999999999996,87.7,50,5.0999999999999996,10.8,null,null,null,"Sep",5.0999999999999996,87.7,5.0999999999999996,10.8]
["Oct",200,6.2,101.3,50,6.2,11.9,null,null,null,"Oct",6.2,101.3,6.2,11.9]
["Nov",200,8,64.555000000000007,50,8,13.3,null,null,null,"Nov",8,64.555000000000007,8,13.3]
["Dec",200,8.1,54.4,50,8.1,12.5,null,null,null,"Dec",8.1,54.4,8.1,12.5]
[null,null,null,null,null,null,null,null,null,null,"Annual",{"$f":"AVERAGE(L7:L18)","v":10.991666666666669},{"$f":"MAX(M7:M18)","v":177.9},{"$f":"AVERAGE(N7:N18)","v":10.991666666666669},{"$f":"MAX(O7:O18)","v":40}]
[]
[]
[]
[]
[]
[]
[]
[]
[]
[]
[]
[]
[]
[]
[]
[]
[]
[]
[]
[]
[]
[]
[]
[]
[]
[]
[]
[]
["Comments :"]

{"sheet":"NOx","index":16,"n_rows":48,"n_cols":17,"rows_kept":48,"cut":false,"hidden":false,"merged":[[3,16,7,18],[9,16,11,18],[12,16,15,18],[66,9,78,9],[4,1,4,3],[4,4,4,6],[4,9,4,14],[6,9,18,9],[21,9,33,9],[36,9,48,9],[47,0,47,6],[48,0,51,6],[51,9,63,9]]}
[{"$f":"+'Cover Page'!$B$29","v":"Annual Performance Report 2021"},null,null,null,{"$f":"+'Cover Page'!$B$33","v":"SUEZ R&R Kirklees EfW"}]
[]
["Monitoring of Oxides of Nitrogen emissions",null,null,"Whole Installation",null,null,"See  Notes in Cell Q3",null,null,{"$f":"+A3","v":"Monitoring of Oxides of Nitrogen emissions"},null,null,null,"Per Combustion Line",null,null,"Notes:"]
[null,null,null,null,null,null,null,null,null,null,null,null,null,null,null,null,"User to add logic to complete Whole installation, Table A5:G18. From the data in Per Combustion Line, Table J6:O79, subject to No. of lines installed"]
["mg/Nm3","1/2 Hourly Reference Periods",null,null,"Daily Reference Periods"]
[{"$f":"+'Cover Page'!C39","v":2021},"1/2 hourly NOx ELV","Monthly 1/2 hourly mean","Highest 1/2 hourly maximum","Daily NOx ELV","Monthly daily mean","Highest daily maximum",null,null,{"$f":"+A6","v":2021},"mg/Nm3","Monthly 1/2 hourly mean","Monthly 1/2 hourly maximum","Monthly daily mean","Monthly daily maximum"]
["Jan",400,{"$f":"L7","v":177.1},{"$f":"M7","v":228.7},200,{"$f":"N7","v":177.1},{"$f":"O7","v":197.1},null,null,"A1","Jan",177.1,228.7,177.1,197.1]
["Feb",400,{"$f":"L8","v":174.4},{"$f":"M8","v":226.3},200,{"$f":"N8","v":174.4},{"$f":"O8","v":180.6},null,null,null,"Feb",174.4,226.3,174.4,180.6]
["Mar",400,173.3,354.5,200,173.3,187.2,null,null,null,"Mar",173.3,354.5,173.3,187.2,null,"Whole Installation table A5:G18:"]
["Apr",400,234.4,176,200,234.4,185,null,null,null,"Apr",234.4,176,234.4,185,null,"Mean: for 1/2 hourly and daily periods calculate mean of values across all operational combustion lines for the month"]
["May",400,158.19999999999999,213,200,158.19999999999999,161.69999999999999,null,null,null,"May",158.19999999999999,213,158.19999999999999,161.69999999999999]
["Jun",400,181.3,237.7,200,181.3,196,null,null,null,"Jun",181.3,237.7,181.3,196]
["Jul",400,188.6,227.8,200,188.6,198.2,null,null,null,"Jul",188.6,227.8,188.6,198.2,null,"Maximum: for 1/2 hourly and daily periods use the highest value across all operational combustion lines for the month"]
["Aug",400,187.7,243.8,200,187.7,199,null,null,null,"Aug",187.7,243.8,187.7,199]
["Sep",400,"182,7",218.3,200,182.7,198.5,null,null,null,"Sep","182,7",218.3,182.7,198.5]
["Oct",400,174,222.9,200,174,182.7,null,null,null,"Oct",174,222.9,174,182.7]
["Nov",400,189.4,231.8,200,189.4,203.2,null,null,null,"Nov",189.4,231.8,189.4,203.2]
["Dec",400,187.1,235.4,200,187.1,197.3,null,null,null,"Dec",187.1,235.4,187.1,197.3]
[null,null,null,null,null,null,null,null,null,null,"Annual",{"$f":"AVERAGE(L7:L18)","v":184.13636363636363},{"$f":"MAX(M7:M18)","v":354.5},{"$f":"AVERAGE(N7:N18)","v":184.01666666666665},{"$f":"MAX(O7:O18)","v":203.2}]
[]
[]
[]
[]
[]
[]
[]
[]
[]
[]
[]
[]
[]
[]
[]
[]
[]
[]
[]
[]
[]
[]
[]
[]
[]
[]
[]
[]
["Comments :"]

{"sheet":"TOC","index":17,"n_rows":48,"n_cols":17,"rows_kept":48,"cut":false,"hidden":false,"merged":[[3,16,7,18],[9,16,11,18],[12,16,15,18],[66,9,78,9],[4,1,4,3],[4,4,4,6],[4,9,4,14],[6,9,18,9],[21,9,33,9],[36,9,48,9],[47,0,47,6],[48,0,51,6],[51,9,63,9]]}
[{"$f":"+'Cover Page'!$B$29","v":"Annual Performance Report 2021"},null,null,null,{"$f":"+'Cover Page'!$B$33","v":"SUEZ R&R Kirklees EfW"}]
[]
["Monitoring of Total organic carbon emissions",null,null,"Whole Installation",null,null,"See  Notes in Cell Q3",null,null,{"$f":"+A3","v":"Monitoring of Total organic carbon emissions"},null,null,null,"Per Combustion Line",null,null,"Notes:"]
[null,null,null,null,null,null,null,null,null,null,null,null,null,null,null,null,"User to add logic to complete Whole installation, Table A5:G18. From the data in Per Combustion Line, Table J6:O79, subject to No. of lines installed"]
["mg/Nm3","1/2 Hourly Reference Periods",null,null,"Daily Reference Periods"]
[{"$f":"+'Cover Page'!C39","v":2021},"1/2 hourly TOC ELV","Monthly 1/2 hourly mean","Highest 1/2 hourly maximum","Daily TOC ELV","Monthly daily mean","Highest daily maximum",null,null,{"$f":"+A6","v":2021},"mg/Nm3","Monthly 1/2 hourly mean","Monthly 1/2 hourly maximum","Monthly daily mean","Monthly daily maximum"]
["Jan",20,{"$f":"L7","v":1.2},{"$f":"M7","v":13.5},10,{"$f":"N7","v":1.2},{"$f":"O7","v":2},null,null,"A1","Jan",1.2,13.5,1.2,2]
["Feb",20,{"$f":"L8","v":0.5},{"$f":"M8","v":10.4},10,{"$f":"N8","v":0.5},{"$f":"O8","v":1.6},null,null,null,"Feb",0.5,10.4,0.5,1.6]
["Mar",20,0.2,7.9,10,0.2,0.5,null,null,null,"Mar",0.2,7.9,0.2,0.5,null,"Whole Installation table A5:G18:"]
["Apr",20,0.9,3.9,10,0.9,1.5,null,null,null,"Apr",0.9,3.9,0.9,1.5,null,"Mean: for 1/2 hourly and daily periods calculate mean of values across all operational combustion lines for the month"]
["May",20,1.4,6.6,10,1.4,2.8,null,null,null,"May",1.4,6.6,1.4,2.8]
["Jun",20,0.9,6.2,10,0.9,1.3,null,null,null,"Jun",0.9,6.2,0.9,1.3]
["Jul",20,1,11.5,10,1,1.2,null,null,null,"Jul",1,11.5,1,1.2,null,"Maximum: for 1/2 hourly and daily periods use the highest value across all operational combustion lines for the month"]
["Aug",20,0.9,7.5,10,0.9,1.3,null,null,null,"Aug",0.9,7.5,0.9,1.3]
["Sep",20,0.9,10.199999999999999,10,0.9,1.2,null,null,null,"Sep",0.9,10.199999999999999,0.9,1.2]
["Oct",20,0.9,9,10,0.9,1.1000000000000001,null,null,null,"Oct",0.9,9,0.9,1.1000000000000001]
["Nov",20,0.7,6,10,0.7,0.9,null,null,null,"Nov",0.7,6,0.7,0.9]
["Dec",20,0.8,7.4,10,0.8,1.3,null,null,null,"Dec",0.8,7.4,0.8,1.3]
[null,null,null,null,null,null,null,null,null,null,"Annual",{"$f":"AVERAGE(L7:L18)","v":0.85833333333333339},{"$f":"MAX(M7:M18)","v":13.5},{"$f":"AVERAGE(N7:N18)","v":0.85833333333333339},{"$f":"MAX(O7:O18)","v":2.8}]
[]
[]
[]
[]
[]
[]
[]
[]
[]
[]
[]
[]
[]
[]
[]
[]
[]
[]
[]
[]
[]
[]
[]
[]
[]
[]
[]
[]
["Comments :"]

{"sheet":"Particulates","index":18,"n_rows":48,"n_cols":17,"rows_kept":48,"cut":false,"hidden":false,"merged":[[3,16,7,18],[9,16,11,18],[12,16,15,18],[66,9,78,9],[4,1,4,3],[4,4,4,6],[4,9,4,14],[6,9,18,9],[21,9,33,9],[36,9,48,9],[47,0,47,6],[48,0,51,6],[51,9,63,9]]}
[{"$f":"+'Cover Page'!$B$29","v":"Annual Performance Report 2021"},null,null,null,{"$f":"+'Cover Page'!$B$33","v":"SUEZ R&R Kirklees EfW"}]
[]
["Monitoring of Particulate matter emissions",null,null,"Whole Installation",null,null,"See  Notes in Cell Q3",null,null,{"$f":"+A3","v":"Monitoring of Particulate matter emissions"},null,null,null,"Per Combustion Line",null,null,"Notes:"]
[null,null,null,null,null,null,null,null,null,null,null,null,null,null,null,null,"User to add logic to complete Whole installation, Table A5:G18. From the data in Per Combustion Line, Table J6:O79, subject to No. of lines installed"]
["mg/Nm3","1/2 Hourly Reference Periods",null,null,"Daily Reference Periods"]
[{"$f":"+'Cover Page'!C39","v":2021},"1/2 hourly PM ELV","Monthly 1/2 hourly mean","Highest 1/2 hourly maximum","Daily PM ELV","Monthly daily mean","Highest daily maximum",null,null,{"$f":"+A6","v":2021},"mg/Nm3","Monthly 1/2 hourly mean","Monthly 1/2 hourly maximum","Monthly daily mean","Monthly daily maximum"]
["Jan",30,{"$f":"L7","v":1.5},{"$f":"M7","v":7.6},10,{"$f":"N7","v":1.5},{"$f":"O7","v":3.2},null,null,"A1","Jan",1.5,7.6,1.5,3.2]
["Feb",30,{"$f":"L8","v":2.1},{"$f":"M8","v":8.9},10,{"$f":"N8","v":2.1},{"$f":"O8","v":3.5},null,null,null,"Feb",2.1,8.9,2.1,3.5]
["Mar",30,2.5,13.1,10,2.5,3.9,null,null,null,"Mar",2.5,13.1,2.5,3.9,null,"Whole Installation table A5:G18:"]
["Apr",30,1.3,4.4000000000000004,10,1.3,2.2999999999999998,null,null,null,"Apr",1.3,4.4000000000000004,1.3,2.2999999999999998,null,"Mean: for 1/2 hourly and daily periods calculate mean of values across all operational combustion lines for the month"]
["May",30,5.5,41.3,10,5.5,19.600000000000001,null,null,null,"May",5.5,41.3,5.5,19.600000000000001]
["Jun",30,2.8,28.7,10,2.8,9.1999999999999993,null,null,null,"Jun",2.8,28.7,2.8,9.1999999999999993]
["Jul",30,2.4,32.799999999999997,10,2.4,5.2,null,null,null,"Jul",2.4,32.799999999999997,2.4,5.2,null,"Maximum: for 1/2 hourly and daily periods use the highest value across all operational combustion lines for the month"]
["Aug",30,1.5,15.1,10,1.5,2.4,null,null,null,"Aug",1.5,15.1,1.5,2.4]
["Sep",30,1.5,20.9,10,1.5,3,null,null,null,"Sep",1.5,20.9,1.5,3]
["Oct",30,1.5,6.3,10,1.5,2,null,null,null,"Oct",1.5,6.3,1.5,2]
["Nov",30,1.3,6.1,10,1.3,1.8,null,null,null,"Nov",1.3,6.1,1.3,1.8]
["Dec",30,1.4,4.4000000000000004,10,1.4,2.9,null,null,null,"Dec",1.4,4.4000000000000004,1.4,2.9]
[null,null,null,null,null,null,null,null,null,null,"Annual",{"$f":"AVERAGE(L7:L18)","v":2.1083333333333329},{"$f":"MAX(M7:M18)","v":41.3},{"$f":"AVERAGE(N7:N18)","v":2.1083333333333329},{"$f":"MAX(O7:O18)","v":19.600000000000001}]
[]
[]
[]
[]
[]
[]
[]
[]
[]
[]
[]
[]
[]
[]
[]
[]
[]
[]
[]
[]
[]
[]
[]
[]
[]
[]
[]
[]
["Comments :"]

{"sheet":"CO 95% 10 min","index":19,"n_rows":49,"n_cols":19,"rows_kept":49,"cut":false,"hidden":false,"merged":[[3,18,7,20],[9,18,11,20],[12,18,15,20],[66,10,78,10],[4,1,4,4],[4,5,4,7],[4,10,4,16],[6,10,18,10],[21,10,33,10],[36,10,48,10],[47,0,47,7],[48,0,51,7],[51,10,63,10]]}
[{"$f":"+'Cover Page'!$B$29","v":"Annual Performance Report 2021"},null,null,null,{"$f":"+'Cover Page'!$B$33","v":"SUEZ R&R Kirklees EfW"}]
[]
["Monitoring of Carbon Monoxide (10-minute avg)",null,null,null,"Whole Installation",null,null,"See  Notes in Cell S3",null,{"$f":"+A3","v":"Monitoring of Carbon Monoxide (10-minute avg)"},null,null,null,null,"Per Combustion Line",null,"Notes:",null,"Notes:"]
[null,null,null,null,null,null,null,null,null,null,null,null,null,null,null,null,null,null,"User to add logic to complete Whole installation, Table A5:H18. From the data in Per Combustion Line, Table K6:Q79, subject to No. of lines installed"]
["mg/Nm3","10-minute Reference Periods",null,null,null,"Daily Reference Periods"]
[{"$f":"+'Cover Page'!C39","v":2021},"95%ile 10-min avg CO ELV","95%ile 10-min avg maximum","Monthly CO 10-min avg mean","10-min avg maximum","Daily CO ELV","Monthly daily mean","Highest daily maximum",null,null,{"$f":"+A6","v":2021},"mg/Nm3","95%ile 10-min avg maximum","Monthly CO 10-min avg mean","10-min avg maximum","Monthly daily mean","Monthly daily maximum"]
["Jan",150,{"$f":"M7","v":120},{"$f":"N7","v":28.1},{"$f":"O7","v":856.9},50,{"$f":"P7","v":28.1},{"$f":"Q7","v":46},null,null,"A1","Jan",120,28.1,856.9,28.1,46]
["Feb",{"$f":"+B7","v":150},{"$f":"M8","v":146.4},{"$f":"N8","v":26},{"$f":"O8","v":325},{"$f":"+F7","v":50},{"$f":"P8","v":26},{"$f":"Q8","v":37.1},null,null,null,"Feb",146.4,26,325,26,37.1]
["Mar",{"$f":"+B8","v":150},116,27.5,549.5,{"$f":"+F8","v":50},27.5,43.5,null,null,null,"Mar",116,27.5,549.5,27.5,43.5,null,"Whole Installation table A5:H18:"]
["Apr",150,130.30000000000001,34.4,315.39999999999998,50,34.4,43.5,null,null,null,"Apr",130.30000000000001,34.4,315.39999999999998,34.4,43.5,null,"Mean: for 10-min and daily periods use average of all operational combustion lines."]
["May",150,91.3,22.8,278.5,50,22.8,39.5,null,null,null,"May",91.3,22.8,278.5,22.8,39.5]
["Jun",150,91.1,15.7,242.9,50,15.7,22.6,null,null,null,"Jun",91.1,15.7,242.9,15.7,22.6]
["Jul",150,89.6,22,499.9,50,22,30.3,null,null,null,"Jul",89.6,22,499.9,22,30.3,null,"Maximum: for 10-min and daily periods use the highest of all operational combustion lines in any month."]
["Aug",150,72.8,19,413.8,50,19,27.8,null,null,null,"Aug",72.8,19,413.8,19,27.8]
["Sep",150,74.599999999999994,18.600000000000001,315.89999999999998,50,18.600000000000001,27.3,null,null,null,"Sep",74.599999999999994,18.600000000000001,315.89999999999998,18.600000000000001,27.3]
["Oct",150,67.5,20.6,442.8,50,20.6,32.299999999999997,null,null,null,"Oct",67.5,20.6,442.8,20.6,32.299999999999997]
["Nov",150,75.3,23.7,222.8,50,23.7,32.9,null,null,null,"Nov",75.3,23.7,222.8,23.7,32.9]
["Dec",150,77,23.1,234,50,23.1,36.4,null,null,null,"Dec",77,23.1,234,23.1,36.4]
[null,null,null,null,null,null,null,null,null,null,null,"Annual",{"$f":"AVERAGE(M7:M18)","v":95.991666666666674},{"$f":"MIN(N7:N18)","v":15.7},{"$f":"MAX(O7:O18)","v":856.9},{"$f":"AVERAGE(P7:P18)","v":23.458333333333332},{"$f":"MAX(Q8:Q18)","v":43.5}]
[]
[]
[]
[]
[]
[]
[]
[]
[]
[]
[]
[]
[]
[]
[]
[]
[]
[]
[]
[]
[]
[]
[]
[]
[]
[]
[]
[]
["Comments :"]
["Environment Agency explanatory note: The 10-minute average ELV is based on the “95th percentile”. In this case this means that 95% of the 10 minute averages in the relevant 24-hour period (i.e. 137) must be below 150 mg/Nm3, and 5% (i.e. 7) are allowed to be any value above 150 mg/Nm3. Whilst we expect operators to minimise CO emissions at all times, it is perfectly acceptable for the value of the maximum 10-minute average to be above 150 mg/Nm3, provided the 95th percentile ELV has been met for that period. "]

{"sheet":"NH3","index":20,"n_rows":79,"n_cols":17,"rows_kept":79,"cut":false,"hidden":false,"merged":[[3,16,7,18],[9,16,11,18],[12,16,15,18],[66,9,78,9],[4,1,4,3],[4,4,4,6],[4,9,4,14],[6,9,18,9],[21,9,33,9],[36,9,48,9],[47,0,47,6],[48,0,51,6],[51,9,63,9]]}
[{"$f":"+'Cover Page'!$B$29","v":"Annual Performance Report 2021"},null,null,null,{"$f":"+'Cover Page'!$B$33","v":"SUEZ R&R Kirklees EfW"}]
[]
["Monitoring of Ammnonia emissions ",null,null,"Whole Installation",null,null,"See  Notes in Cell Q3",null,null,{"$f":"+A3","v":"Monitoring of Ammnonia emissions "},null,null,null,"Per Combustion Line",null,null,"Notes:"]
[null,null,null,null,null,null,null,null,null,null,null,null,null,null,null,null,"User to add logic to complete Whole installation, Table A5:G18. From the data in Per Combustion Line, Table J6:O79, subject to No. of lines installed"]
["mg/Nm3","1/2 Hourly Reference Periods",null,null,"Daily Reference Periods"]
[{"$f":"+'Cover Page'!C39","v":2021},"1/2 hourly NH3 ELV","Monthly 1/2 hourly mean","Highest 1/2 hourly maximum","Daily NH3 ELV","Monthly daily mean","Highest daily maximum",null,null,{"$f":"+A6","v":2021},"mg/Nm3","Monthly 1/2 hourly mean","Monthly 1/2 hourly maximum","Monthly daily mean","Monthly daily maximum"]
["Jan",0,{"$f":"L7","v":" "},{"$f":"M7","v":240},10,{"$f":"N7","v":195.4},{"$f":"O7","v":224.1},null,null,"A1","Jan"," ",240,195.4,224.1]
["Feb",{"$f":"+B7","v":0},{"$f":"L8","v":193.7},{"$f":"M8","v":230.5},{"$f":"+E7","v":10},{"$f":"N8","v":193.7},{"$f":"O8","v":197},null,null,null,"Feb",193.7,230.5,193.7,197]
["Mar",{"$f":"+B8","v":0},192.2,243.5,{"$f":"+E8","v":10},192.2,198,null,null,null,"Mar",192.2,243.5,192.2,198,null,"Whole Installation table A5:G18:"]
["Apr",0,192.6,240.4,10,192.6,197.4,null,null,null,"Apr",192.6,240.4,192.6,197.4,null,"Mean: for 1/2 hourly and daily periods calculate mean of values across all operational combustion lines for the month"]
["May",0,187.1,271.39999999999998,10,187.1,192.9,null,null,null,"May",187.1,271.39999999999998,187.1,192.9]
["Jun",0,193.4,248.7,10,193.4,199.1,null,null,null,"Jun",193.4,248.7,193.4,199.1]
["Jul",0,192.3,293.10000000000002,10,192.3,199,null,null,null,"Jul",192.3,293.10000000000002,192.3,199,null,"Maximum: for 1/2 hourly and daily periods use the highest value across all operational combustion lines for the month"]
["Aug",0,192.7,244.6,10,192.7,198.7,null,null,null,"Aug",192.7,244.6,192.7,198.7]
["Sep",0,190.9,237.8,10,190.9,197.9,null,null,null,"Sep",190.9,237.8,190.9,197.9]
["Oct",0,175,237.7,10,175,181.2,null,null,null,"Oct",175,237.7,175,181.2]
["Nov",0,177,227.8,10,177,186,null,null,null,"Nov",177,227.8,177,186]
["Dec",0,178.9,248.6,10,178.9,196.7,null,null,null,"Dec",178.9,248.6,178.9,196.7]
[null,null,null,null,null,null,null,null,null,null,"Annual",{"$f":"AVERAGE(L7:L18)","v":187.8},{"$f":"MAX(M7:M18)","v":293.10000000000002},{"$f":"AVERAGE(N7:N18)","v":188.43333333333337},{"$f":"MAX(O7:O18)","v":224.1}]
[]
[null,null,null,null,null,null,null,null,null,{"$f":"+A6","v":2021},"mg/Nm3","Monthly 1/2 hourly mean","Monthly 1/2 hourly maximum","Monthly daily mean","Monthly daily maximum"]
[null,null,null,null,null,null,null,null,null,"A2","Jan",0,0,0,0]
[null,null,null,null,null,null,null,null,null,null,"Feb",0,0,0,0]
[null,null,null,null,null,null,null,null,null,null,"Mar",0,0,0,0]
[null,null,null,null,null,null,null,null,null,null,"Apr",0,0,0,0]
[null,null,null,null,null,null,null,null,null,null,"May",0,0,0,0]
[null,null,null,null,null,null,null,null,null,null,"Jun",0,0,0,0]
[null,null,null,null,null,null,null,null,null,null,"Jul",0,0,0,0]
[null,null,null,null,null,null,null,null,null,null,"Aug",0,0,0,0]
[null,null,null,null,null,null,null,null,null,null,"Sep",0,0,0,0]
[null,null,null,null,null,null,null,null,null,null,"Oct",0,0,0,0]
[null,null,null,null,null,null,null,null,null,null,"Nov",0,0,0,0]
[null,null,null,null,null,null,null,null,null,null,"Dec",0,0,0,0]
[null,null,null,null,null,null,null,null,null,null,"Annual",{"$f":"AVERAGE(L22:L33)","v":0},{"$f":"MAX(M22:M33)","v":0},{"$f":"AVERAGE(N22:N33)","v":0},{"$f":"MAX(O22:O33)","v":0}]
[]
[null,null,null,null,null,null,null,null,null,{"$f":"+A6","v":2021},"mg/Nm3","Monthly 1/2 hourly mean","Monthly 1/2 hourly maximum","Monthly daily mean","Monthly daily maximum"]
[null,null,null,null,null,null,null,null,null,"A3","Jan",0,0,0,0]
[null,null,null,null,null,null,null,null,null,null,"Feb",0,0,0,0]
[null,null,null,null,null,null,null,null,null,null,"Mar",0,0,0,0]
[null,null,null,null,null,null,null,null,null,null,"Apr",0,0,0,0]
[null,null,null,null,null,null,null,null,null,null,"May",0,0,0,0]
[null,null,null,null,null,null,null,null,null,null,"Jun",0,0,0,0]
[null,null,null,null,null,null,null,null,null,null,"Jul",0,0,0,0]
[null,null,null,null,null,null,null,null,null,null,"Aug",0,0,0,0]
[null,null,null,null,null,null,null,null,null,null,"Sep",0,0,0,0]
[null,null,null,null,null,null,null,null,null,null,"Oct",0,0,0,0]
[null,null,null,null,null,null,null,null,null,null,"Nov",0,0,0,0]
["Comments :",null,null,null,null,null,null,null,null,null,"Dec",0,0,0,0]
["An indicated ELV value of zero in the table above means that no ammonia limit is set in the permit.  ",null,null,null,null,null,null,null,null,null,"Annual",{"$f":"AVERAGE(L37:L48)","v":0},{"$f":"MAX(M37:M48)","v":0},{"$f":"AVERAGE(N37:N48)","v":0},{"$f":"MAX(O37:O48)","v":0}]
[]
[null,null,null,null,null,null,null,null,null,{"$f":"+A6","v":2021},"mg/Nm3","Monthly 1/2 hourly mean","Monthly 1/2 hourly maximum","Monthly daily mean","Monthly daily maximum"]
[null,null,null,null,null,null,null,null,null,"A4","Jan",0,0,0,0]
[null,null,null,null,null,null,null,null,null,null,"Feb",0,0,0,0]
[null,null,null,null,null,null,null,null,null,null,"Mar",0,0,0,0]
[null,null,null,null,null,null,null,null,null,null,"Apr",0,0,0,0]
[null,null,null,null,null,null,null,null,null,null,"May",0,0,0,0]
[null,null,null,null,null,null,null,null,null,null,"Jun",0,0,0,0]
[null,null,null,null,null,null,null,null,null,null,"Jul",0,0,0,0]
[null,null,null,null,null,null,null,null,null,null,"Aug",0,0,0,0]
[null,null,null,null,null,null,null,null,null,null,"Sep",0,0,0,0]
[null,null,null,null,null,null,null,null,null,null,"Oct",0,0,0,0]
[null,null,null,null,null,null,null,null,null,null,"Nov",0,0,0,0]
[null,null,null,null,null,null,null,null,null,null,"Dec",0,0,0,0]
[null,null,null,null,null,null,null,null,null,null,"Annual",{"$f":"AVERAGE(L52:L63)","v":0},{"$f":"MAX(M52:M63)","v":0},{"$f":"AVERAGE(N52:N63)","v":0},{"$f":"MAX(O52:O63)","v":0}]
[]
[null,null,null,null,null,null,null,null,null,{"$f":"+A6","v":2021},"mg/Nm3","Monthly 1/2 hourly mean","Monthly 1/2 hourly maximum","Monthly daily mean","Monthly daily maximum"]
[null,null,null,null,null,null,null,null,null,"A5","Jan",0,0,0,0]
[null,null,null,null,null,null,null,null,null,null,"Feb",0,0,0,0]
[null,null,null,null,null,null,null,null,null,null,"Mar",0,0,0,0]
[null,null,null,null,null,null,null,null,null,null,"Apr",0,0,0,0]
[null,null,null,null,null,null,null,null,null,null,"May",0,0,0,0]
[null,null,null,null,null,null,null,null,null,null,"Jun",0,0,0,0]
[null,null,null,null,null,null,null,null,null,null,"Jul",0,0,0,0]
[null,null,null,null,null,null,null,null,null,null,"Aug",0,0,0,0]
[null,null,null,null,null,null,null,null,null,null,"Sep",0,0,0,0]
[null,null,null,null,null,null,null,null,null,null,"Oct",0,0,0,0]
[null,null,null,null,null,null,null,null,null,null,"Nov",0,0,0,0]
[null,null,null,null,null,null,null,null,null,null,"Dec",0,0,0,0]
[null,null,null,null,null,null,null,null,null,null,"Annual",{"$f":"AVERAGE(L67:L78)","v":0},{"$f":"MAX(M67:M78)","v":0},{"$f":"AVERAGE(N67:N78)","v":0},{"$f":"MAX(O67:O78)","v":0}]